[Event "Prague Festival Masters 2024"]
[Site "Prague"]
[Date "2024.03.05"]
[Round "7.3"]
[White "Rapport, Richard"]
[Black "Nguyen, Thai Dai Van"]
[Result "0-1"]
[ECO "A09"]
[WhiteElo "2717"]
[BlackElo "2632"]
[Annotator "TA"]
[PlyCount "64"]
[EventDate "2024.02.22"]
[EventType "tourn"]
[EventCountry "CZE"]
[SourceTitle "playchess.com"]
[Source "ChessBase"]
[SourceQuality "1"]
[TimeControl "40/5400+30:1800+30"]

{[%evp 9,64,-11,11,0,7,11,-2,-12,-2,-16,0,-13,0,-25,-12,0,0,0,22,-15,-11,-8,-16,-17,-22,-60,-37,-45,-45,-34,-6,-12,-8,-12,-15,-262,-276,-274,-261,-287,-287,-287,-287,-395,-306,-433,-428,-432,-433,-433,-433,-432,-429,-417,-327,-542,-542]} 1. g3 {[%emt 0:00:57]} d5 {[%emt 0:00:27]} 2. Nf3 {[%emt 0:00:13]} g6 {[%emt 0:00:14]} 3. c4 {[%emt 0:00:50]} dxc4 {[%emt 0:00:28]} 4. Na3 {[%emt 0:00:10]} Bg7 {[%emt 0:01:10]} 5. Nxc4 {[%emt 0:00:11]} c5 {[%emt 0:00:11]} 6. Bg2 {[%emt 0:00:57]} Nc6 {[%emt 0:00:07] Repels Nfe5} 7. d3 {[%emt 0:08:16]} Nf6 {[%emt 0:00:09]} 8. Bd2 {[%emt 0:01:12] The position is equal.} O-O {[%emt 0:07:53]} 9. Bc3 {[%emt 0:01:26]} Be6 {[%emt 0:05:06]} 10. O-O {[%emt 0:05:03]} Rc8 {[%emt 0:01:50]} 11. a3 {[%emt 0:09:39]} Nd4 {[%emt 0:23:52]} 12. Rc1 {[%emt 0:16:19]} (12. Ng5 {feels hotter.} Bd5 13. Bh3 Nd7 14. e3) 12... Nxf3+ {[%emt 0:06:45]} 13. Bxf3 {[%emt 0:00:38]} Bd5 {[%emt 0:00:11]} 14. Bxf6 {[%emt 0:06:35]} exf6 {[%emt 0:05:41]} 15. Bxd5 {[%emt 0:02:30]} Qxd5 {[%emt 0:00:02]} 16. Qa4 {[%emt 0:01:24]} Qe6 {[%emt 0:08:39]} 17. Rfe1 {[%emt 0:19:02]} a6 {[%emt 0:03:27] And now ...b5 would win.} 18. Qb3 {[%emt 0:01:00]} b5 {[%emt 0:02:02]} 19. Nd2 {[%emt 0:00:06]} Qxb3 {[%emt 0:03:22]} 20. Nxb3 {[%emt 0:00:04]} f5 {[%emt 0:00:07]} 21. Rc2 $1 {[%emt 0:00:37][%cal Oe1c1]} c4 $36 {[%emt 0:01:39][%mdl 2048] Black fights for an advantage.} 22. Rec1 $2 {[%emt 0:02:17] This costs White the game.} (22. dxc4 $11 Rxc4 23. Rec1) 22... cxb3 $19 {[%emt 0:14:06]} 23. Rxc8 {[%emt 0:00:20]} Bxb2 {[%emt 0:00:03]} 24. Rxf8+ {[%emt 0:12:16]} Kxf8 {[%emt 0:00:11][%mdl 4096] Endgame. KR-KB} 25. Rb1 {[%emt 0:00:09]} Bxa3 {[%emt 0:00:05]} 26. Rxb3 {[%emt 0:02:51] [#]} b4 {[%emt 0:00:08]} 27. Kf1 {[%emt 0:00:39]} (27. Rb1 {was called for.} a5 28. h4) 27... a5 {[%emt 0:00:04]} 28. Ke1 {[%emt 0:00:32]} a4 {[%emt 0:00:05]} 29. Rb1 {[%emt 0:00:06]} b3 {[%emt 0:00:06] ...Bb4+ would now be deadly.} 30. Kd1 {[%emt 0:00:21]} Bd6 {[%emt 0:01:36] ...a3 is the strong threat.} 31. Kc1 {[%emt 0:03:27] [#] aiming for Kb2.} Be5 {[%emt 0:00:31]} 32. e3 $2 {[%emt 0:00:40]} (32. Kd2) 32... Bc3 {[%emt 0:00:08] Weighted Error Value: White=0.41/Black=0.05 (flawless) .  Loses game:     	White=1     	---        Mistake:       	White=2     	---        Inaccurate:     	White=3     	Black=1      OK:         	White=12    	Black=12     Best:        	White=1     	Black=6      Strong:       	White=1     	---} 0-1

[Event "Prague Festival Masters 2024"]
[Site "Prague"]
[Date "2024.03.05"]
[Round "7.4"]
[White "Maghsoodloo, Parham"]
[Black "Vidit, Santosh Gujrathi"]
[Result "1-0"]
[ECO "A14"]
[WhiteElo "2740"]
[BlackElo "2742"]
[Annotator "TA"]
[PlyCount "63"]
[EventDate "2024.02.22"]
[EventType "tourn"]
[EventCountry "CZE"]
[SourceTitle "playchess.com"]
[Source "ChessBase"]
[SourceQuality "1"]
[TimeControl "40/5400+30:1800+30"]

{[%evp 20,63,-5,-1,18,13,33,23,29,41,39,41,60,52,22,0,0,0,0,-16,-23,-14,0,0,13,0,0,-28,-36,-27,-20,-77,-13,-25,231,207,554,522,558,546,544,549,543,549,558,553]} 1. Nf3 {[%emt 0:00:05]} d5 {[%emt 0:00:37]} 2. g3 {[%emt 0:00:15]} Nf6 {[%emt 0:00:18]} 3. Bg2 {[%emt 0:00:08]} e6 {[%emt 0:00:10]} 4. O-O {[%emt 0:00:12]} Be7 {[%emt 0:00:15]} 5. c4 {[%emt 0:00:13]} O-O {[%emt 0:00:27]} 6. b3 {[%emt 0:00:51]} c5 {[%emt 0:04:40]} 7. e3 {[%emt 0:17:29]} Nc6 {[%emt 0:00:54]} 8. Bb2 {[%emt 0:07:06]} d4 {[%emt 0:02:24]} 9. exd4 {[%emt 0:00:07]} cxd4 {[%emt 0:00:10]} 10. Re1 {[%emt 0:01:02]} Re8 {[%emt 0:05:21]} 11. d3 {[%emt 0:06:14]} Bb4 {[%emt 0:17:46]} 12. Nbd2 {[%emt 0:20:35]} e5 {[%emt 0:00:46]} 13. a3 {[%emt 0:00:07]} Bd6 {[%emt 0:06:06] White has an edge.} 14. b4 {[%emt 0:02:40]} Bf5 {[%emt 0:05:04]} 15. c5 {[%emt 0:02:49]} Bc7 {[%emt 0:00:15]} 16. Nc4 $1 {[%emt 0:00:38] b5 is the strong threat.} a6 {[%emt 0:01:33]} 17. Qc2 {[%emt 0:07:42]} Qd7 {[%emt 0:04:12]} 18. Rad1 {[%emt 0:05:14][%cal Ba1d1,Bd1d2,Bd2e2][%mdl 32]} Bg4 {[%emt 0:13:47]} 19. Rd2 {[%emt 0:06:31]} Qf5 {[%emt 0:11:09]} 20. Nh4 {[%emt 0:02:11]} Qh5 {[%emt 0:00:14]} 21. h3 {[%emt 0:00:05]} Be6 {[%emt 0:01:35]} 22. Rde2 {[%emt 0:05:58]} Bd5 {[%emt 0:08:13] Repels Bf3} 23. Nd2 {[%emt 0:01:44]} Bxg2 {[%emt 0:01:47]} 24. Kxg2 {[%emt 0:00:05]} Nd5 {[%emt 0:04:02][%cal Od5f4]} 25. Ndf3 {[%emt 0:01:08]} (25. Nhf3 $1 $11) 25... Rad8 {[%emt 0:02:19]} ({Better is} 25... f6 $17) 26. Qc4 $11 {[%emt 0:00:46][%cal Rb2d4]} Nf6 $2 {[%emt 0:05:59][%mdl 8192] [#] This move loses the game for Black.} (26... Rf8 $1 $11 {and Black is okay.}) 27. Bc1 $1 $18 {[%emt 0:02:06][%cal Oe2e4] And now Re4! would win.} h6 $2 {[%emt 0:01:45] [#]} (27... e4 {is more resistant.}) 28. Re4 $1 {[%emt 0:00:21][%mdl 512] White is clearly winning.} Nxe4 {[%emt 0:00:14]} 29. Rxe4 {[%emt 0:02:37]} g5 {[%emt 0:02:23]} 30. g4 {[%emt 0:00:29]} Qxh4 {[%emt 0:00:16]} 31. Nxh4 {[%emt 0:00:09]} gxh4 {[%emt 0:00:01]} 32. Bxh6 {[%emt 0:00:40] Weighted Error Value: White=0.08 (flawless) /Black=0.50.  Loses game:     	---       	Black=1      Mistake:       	White=1     	Black=2      Inaccurate:     	White=1     	Black=1      OK:         	White=7     	Black=9      Best:        	White=2     	---        Strong:       	White=2     	---        Brilliant:      	White=1     	---} 1-0

[Event "Prague Festival Masters 2024"]
[Site "Prague"]
[Date "2024.03.05"]
[Round "7.5"]
[White "Keymer, Vincent"]
[Black "Abdusattorov, Nodirbek"]
[Result "0-1"]
[ECO "D07"]
[WhiteElo "2743"]
[BlackElo "2727"]
[Annotator "TA"]
[PlyCount "76"]
[EventDate "2024.02.22"]
[EventType "tourn"]
[EventCountry "CZE"]
[SourceTitle "playchess.com"]
[Source "ChessBase"]
[SourceQuality "1"]
[TimeControl "40/5400+30:1800+30"]

{[%evp 29,76,-24,-14,-18,0,-2,6,-6,0,0,0,-78,-16,-22,0,-73,-49,-115,-126,-160,-163,-156,-155,-162,-158,-158,-150,-168,-158,-172,-166,-163,-147,-237,-241,-293,-279,-295,-294,-380,-389,-421,-385,-539,-531,-724,-710,-652,-625]} 1. d4 {[%emt 0:00:04]} d5 {[%emt 0:00:17]} 2. c4 {[%emt 0:00:03]} dxc4 {[%emt 0:00:12]} 3. e4 {[%emt 0:00:05]} Nc6 {[%emt 0:00:06]} 4. Nf3 {[%emt 0:01:02]} Bg4 {[%emt 0:00:27]} 5. d5 {[%emt 0:07:18]} Ne5 {[%emt 0:00:31]} 6. Nc3 {[%emt 0:01:43]} Nf6 {[%emt 0:08:04]} 7. Be3 {[%emt 0:00:10] D07: Queen's Gambit: Chigorin Defence.} a6 {[%emt 0:01:08]} 8. h3 {[%emt 0:06:15]} Nxf3+ {[%emt 0:19:22]} 9. gxf3 {[%emt 0:00:10]} Bh5 {[%emt 0:00:07]} 10. Bxc4 {[%emt 0:12:15]} e5 {[%emt 0:00:09]} 11. Be2 $146 {[%emt 0:16:46]} ({Predecessor:} 11. dxe6 Qxd1+ 12. Rxd1 fxe6 13. Ke2 e5 14. Rhg1 g6 15. Bg5 Be7 16. Be6 h6 17. Bxf6 Bxf6 {1-0 Bogdanov,V (2323)-Maryasin,B (2258) Wch Seniors 65 30th 2022 (10)}) 11... Bd6 {[%emt 0:05:21]} 12. Qb3 {[%emt 0:00:45]} b5 {[%emt 0:00:53]} 13. a4 {[%emt 0:03:11]} bxa4 {[%emt 0:10:27]} 14. Qxa4+ {[%emt 0:02:24]} Nd7 {[%emt 0:00:29]} 15. Rg1 {[%emt 0:05:35]} (15. Bxa6 O-O $17) 15... O-O {[%emt 0:01:12]} 16. Qc2 {[%emt 0:05:42]} (16. Bxa6 f5 (16... Bxf3 17. Bh6 $11) 17. exf5 Nb8 $17 (17... Rxf5 18. Kd2 $17)) 16... a5 {[%emt 0:04:31]} 17. Nb5 {[%emt 0:05:29]} Qe7 {[%emt 0:06:31]} 18. Na7 {[%emt 0:04:41]} (18. Nxc7 $2 Rac8 19. Kf1 (19. Bg5 $2 f6 $19) 19... Rxc7 $19) 18... f5 {[%emt 0:01:22]} 19. Nc6 {[%emt 0:01:19]} Qf7 {[%emt 0:02:17]} 20. h4 {[%emt 0:08:55]} (20. Nxa5 $2 fxe4 21. Ra4 (21. Qxe4 $2 Nf6 $19) 21... Nf6 $19 (21... Qxd5 $2 22. Bc4 $18) (21... exf3 $2 22. Bd3 $19) (21... Bxf3 22. Bh6 $19)) (20. Rxa5 Rxa5 21. Nxa5 fxe4 22. Qxe4 Bxf3 (22... Nf6 23. Qc4 $17) 23. Qxf3 Qxf3 24. Bxf3 Rxf3) (20. Rg5 $11 {remains equal.}) 20... Kh8 {[%emt 0:00:37]} (20... fxe4 $17 21. Bh6 (21. fxe4 a4 $15) 21... g6 (21... exf3 22. Rxg7+ Qxg7 23. Bxg7 $11) (21... Bg6 22. h5 $15) 22. Bxf8 (22. Rxa5 $2 Rxa5 23. Nxa5 Ra8 $19) 22... Rxf8 23. Qxe4 (23. fxe4 $2 Qxf2+ 24. Kd2 Bxe2 $19) 23... Nc5) 21. Rg5 $1 $11 {[%emt 0:00:35]} (21. Nxa5 $2 fxe4 22. fxe4 (22. Qxe4 $2 Nf6 $19) 22... Bb4+ 23. Kf1 Rxa5 $19) (21. Rxa5 $2 Rxa5 22. Nxa5 fxe4 23. Qxe4 Nf6 $19 (23... Bxf3 24. Qxf3 Qxf3 25. Bxf3 $15)) 21... Qe8 {[%emt 0:02:24]} 22. Kd1 {[%emt 0:06:03]} ({But not} 22. Rxa5 Rxa5 (22... Bb4+ 23. Nxb4 Rxa5 24. Qxc7 $16) 23. Nxa5 fxe4 24. fxe4 Bxe2 25. Qxe2 (25. Kxe2 h6 $15) 25... Nf6 $15) (22. Nxa5 fxe4 23. fxe4 Bb4+ 24. Bd2 Bxd2+ 25. Qxd2 Bxe2 26. Qxe2 (26. Kxe2 $2 Nc5 $19) 26... Qb8 $19) (22. exf5 Nf6 $15) (22. Rxf5 $11 Rxf5 23. exf5) 22... h6 $17 {[%emt 0:02:08]} 23. Rg1 {[%emt 0:00:05]} (23. Rxf5 $15 Rxf5 24. exf5) 23... a4 $17 {[%emt 0:01:44]} 24. Rxa4 {[%emt 0:04:41]} Rxa4 {[%emt 0:05:01]} 25. Qxa4 {[%emt 0:00:05]} fxe4 {[%emt 0:00:40]} 26. fxe4 {[%emt 0:02:21]} Bxe2+ {[%emt 0:00:54]} 27. Kxe2 {[%emt 0:00:01]} Qh5+ {[%emt 0:00:07]} 28. Kd3 {[%emt 0:02:21] [#]} Qf3 $1 {[%emt 0:06:54]} 29. Kc2 {[%emt 0:01:27]} Nf6 {[%emt 0:00:16]} 30. Qc4 {[%emt 0:01:42]} Nxe4 {[%emt 0:00:33]} 31. Rf1 {[%emt 0:01:30]} (31. Qd3 $17 {might work better.}) 31... Nf6 $19 {[%emt 0:02:42]} 32. Rd1 {[%emt 0:00:09]} Ng4 {[%emt 0:00:11]} 33. Re1 {[%emt 0:01:29]} Nxf2 {[%emt 0:02:16]} 34. Bxf2 {[%emt 0:00:19]} Qxf2+ {[%emt 0:00:02]} 35. Re2 {[%emt 0:00:01]} Qf1 {[%emt 0:01:00]} 36. Qe4 {[%emt 0:01:12]} Rf4 {[%emt 0:00:24]} 37. Qe3 {[%emt 0:00:01]} Rc4+ {[%emt 0:00:51]} 38. Kb3 {[%emt 0:00:54]} Rxh4 {[%emt 0:00:07]} 0-1

[Event "Prague Festival Masters 2024"]
[Site "Prague"]
[Date "2024.03.06"]
[Round "8.1"]
[White "Vidit, Santosh Gujrathi"]
[Black "Rapport, Richard"]
[Result "1/2-1/2"]
[ECO "E93"]
[WhiteElo "2742"]
[BlackElo "2717"]
[Annotator "TA"]
[PlyCount "60"]
[EventDate "2024.02.22"]
[EventType "tourn"]
[EventCountry "CZE"]
[SourceTitle "playchess.com"]
[Source "ChessBase"]
[SourceQuality "1"]
[TimeControl "40/5400+30:1800+30"]

{[%evp 22,60,54,58,55,50,63,56,66,62,55,14,20,10,17,0,0,0,0,0,5,-1,40,-6,-8,-14,0,-1,0,0,0,0,0,0,0,0,21,21,14,14,0]} 1. d4 {[%emt 0:00:53]} d6 {[%emt 0:00:55]} 2. Nf3 {[%emt 0:05:43]} Nf6 {[%emt 0:00:58]} 3. c4 {[%emt 0:00:22]} g6 {[%emt 0:00:07]} 4. Nc3 {[%emt 0:00:36]} Bg7 {[%emt 0:00:12]} 5. e4 {[%emt 0:00:24]} O-O {[%emt 0:00:09]} 6. Be2 {[%emt 0:00:14]} e5 {[%emt 0:00:07]} 7. d5 {[%emt 0:00:19]} Nbd7 {[%emt 0:01:01]} 8. Be3 {[%emt 0:01:51]} Ng4 {[%emt 0:01:32]} 9. Bg5 {[%emt 0:00:16][%cal Be3g5,Bg5h4,Bh4g3,Bg3f2][%mdl 32]} f6 {[%emt 0:00:12][%cal Bf7f6,Bf6f5,Bf5f4][%mdl 32]} 10. Bh4 {[%emt 0:00:35]} Nh6 {[%emt 0:01:22]} 11. Nd2 {[%emt 0:02:32]} g5 {[%emt 0:00:52]} 12. Bg3 {[%emt 0:00:07]} f5 {[%emt 0:00:03] [#] aiming for ...f4.} 13. f3 {[%emt 0:04:31]} Nf6 {[%emt 0:00:56]} 14. h3 {[%emt 0:02:38]} f4 {[%emt 0:02:03] White is slightly better.} 15. Bf2 {[%emt 0:00:12]} c5 {[%emt 0:00:04]} 16. Qc2 {[%emt 0:06:03]} Nf7 {[%emt 0:01:14]} 17. a3 {[%emt 0:05:32]} Bd7 {[%emt 0:00:49]} 18. b4 {[%emt 0:06:37]} b6 {[%emt 0:00:29]} 19. O-O-O {[%emt 0:05:14]} h5 {[%emt 0:00:57]} 20. Kb2 {[%emt 0:00:10]} Qc7 {[%emt 0:02:18]} 21. b5 {[%emt 0:03:03]} a5 {[%emt 0:05:55]} 22. bxa6 {[%emt 0:01:39]} (22. Rdg1 $14 {deserves consideration.}) 22... Rxa6 $11 {[%emt 0:00:36] The position is equal.} 23. Nb5 {[%emt 0:00:42]} Qb7 {[%emt 0:09:35]} 24. a4 {[%emt 0:02:52]} Rfa8 {[%emt 0:00:22]} 25. Ra1 {[%emt 0:00:08]} Qb8 {[%emt 0:02:25]} 26. Nb1 {[%emt 0:06:16]} Nd8 {[%emt 0:02:17]} 27. N1c3 {[%emt 0:09:27]} h4 {[%emt 0:01:05]} 28. Rhb1 {[%emt 0:01:24]} Nb7 {[%emt 0:00:21]} 29. Kc1 {[%emt 0:00:54]} Bf8 {[%emt 0:00:15]} 30. Be1 {[%emt 0:00:16]} Be7 {[%emt 0:00:07] Weighted Error Value: White=0.06 (flawless) /Black=0.05 (flawless) .  Mistake:       	White=1     	---        Inaccurate:     	White=1     	Black=1      OK:         	White=10    	Black=6} 1/2-1/2

[Event "Prague Festival Masters 2024"]
[Site "Prague"]
[Date "2024.03.06"]
[Round "8.2"]
[White "Gukesh D"]
[Black "Keymer, Vincent"]
[Result "1-0"]
[ECO "E33"]
[WhiteElo "2725"]
[BlackElo "2743"]
[Annotator "TA"]
[PlyCount "53"]
[EventDate "2024.02.22"]
[EventType "tourn"]
[EventCountry "CZE"]
[SourceTitle "playchess.com"]
[Source "ChessBase"]
[SourceQuality "1"]
[TimeControl "40/5400+30:1800+30"]

{[%evp 14,53,23,13,18,20,27,11,19,0,16,0,10,0,47,48,49,43,111,145,156,143,232,211,202,226,204,234,372,386,445,442,1355,1349,1496,933,1086,1158,1166,1157,1105,1023]} 1. d4 {[%emt 0:00:04]} Nf6 {[%emt 0:00:04]} 2. c4 {[%emt 0:00:07]} e6 {[%emt 0:00:03]} 3. Nc3 {[%emt 0:00:10]} Bb4 {[%emt 0:00:04]} 4. Nf3 {[%emt 0:00:18]} d6 {[%emt 0:00:05]} 5. Qc2 {[%emt 0:01:12]} O-O {[%emt 0:00:08]} 6. Bg5 {[%emt 0:00:25]} Nc6 {[%emt 0:01:44]} 7. a3 {[%emt 0:03:57]} Bxc3+ {[%emt 0:00:05]} 8. Qxc3 {[%emt 0:00:14]} h6 {[%emt 0:01:16]} 9. Bh4 {[%emt 0:00:07]} Re8 {[%emt 0:00:05]} 10. O-O-O {[%emt 0:08:59]} Bd7 {[%emt 0:18:52] The position is equal.} 11. e3 {[%emt 0:13:08]} e5 {[%emt 0:07:07]} 12. Qc2 {[%emt 0:03:36]} (12. dxe5 $5 Nxe5 13. Be2 $11) 12... a6 {[%emt 0:09:44]} 13. Bd3 {[%emt 0:09:27]} g5 {[%emt 0:09:06]} (13... exd4 $11 14. Nxd4 Rb8) 14. dxe5 $1 $14 {[%emt 0:01:00]} Nxe5 {[%emt 0:05:57]} 15. Nxe5 {[%emt 0:01:14]} Rxe5 {[%emt 0:01:29]} (15... dxe5 $14 16. Bg3 Qe7) 16. f4 $16 {[%emt 0:09:46][%cal Bf2f4,Bf4g5,Bg5g6,Bg6g7][%mdl 32]} Rc5 {[%emt 0:09:21]} 17. b4 {[%emt 0:08:17]} Rc6 {[%emt 0:00:20]} (17... Qe7 $16) 18. fxg5 $18 {[%emt 0:00:07]} Ng4 {[%emt 0:00:05]} 19. Bh7+ {[%emt 0:05:22]} Kf8 {[%emt 0:09:12] [#]} 20. Rhf1 $1 {[%emt 0:02:04]} Qe7 {[%emt 0:06:13] [#]} ({Inferior is} 20... hxg5 21. Rxf7+ Ke8 22. Qg6 Rxc4+ 23. Kb2) (20... Ne5 $142) 21. g6 $1 {[%emt 0:03:33]} f6 {[%emt 0:02:37]} (21... Qxh4 $2 {perishes.} 22. Rxf7+ Ke8 23. Qe4+ Ne5 24. Qxh4 $18) 22. h3 {[%emt 0:04:58][%cal Bh2h3,Bh3g4][%mdl 32] White is clearly winning.} d5 {[%emt 0:09:57]} (22... Be6 $142) 23. hxg4 {[%emt 0:01:24]} Rxc4 {[%emt 0:00:20]} 24. Rxf6+ {[%emt 0:01:46]} Ke8 {[%emt 0:00:33]} 25. g7 {[%emt 0:00:32]} Rxc2+ {[%emt 0:02:03]} 26. Bxc2 {[%emt 0:01:00] Black is weak on the dark squares} Qxg7 {[%emt 0:00:57]} 27. Bg6+ {[%emt 0:00:09] Weighted Error Value: White=0.08 (flawless) /Black=0.36.  Mistake:       	---       	Black=5      OK:         	White=3     	Black=4      Best:        	White=4     	Black=2      Strong:       	White=3     	---} 1-0

[Event "Prague Festival Masters 2024"]
[Site "Prague"]
[Date "2024.03.06"]
[Round "8.3"]
[White "Navara, David"]
[Black "Nguyen, Thai Dai Van"]
[Result "1/2-1/2"]
[ECO "A49"]
[WhiteElo "2679"]
[BlackElo "2632"]
[Annotator "TA"]
[PlyCount "72"]
[EventDate "2024.02.22"]
[EventType "tourn"]
[EventCountry "CZE"]
[SourceTitle "playchess.com"]
[Source "ChessBase"]
[SourceQuality "1"]
[TimeControl "40/5400+30:1800+30"]

{[%evp 20,72,11,8,20,7,37,35,37,40,37,18,24,16,15,10,9,9,8,12,13,0,22,22,14,14,18,11,16,12,18,9,10,4,5,3,7,5,6,4,12,0,0,0,0,0,0,0,0,0,0,0,0,0,0]} 1. Nf3 {[%emt 0:00:02]} d5 {[%emt 0:00:09]} 2. g3 {[%emt 0:00:04]} g6 {[%emt 0:00:15]} 3. Bg2 {[%emt 0:00:04]} Bg7 {[%emt 0:00:05]} 4. d4 {[%emt 0:00:06]} Nf6 {[%emt 0:00:06]} 5. c4 {[%emt 0:00:22]} c6 {[%emt 0:00:06]} 6. O-O {[%emt 0:00:06]} O-O {[%emt 0:00:05]} 7. b3 {[%emt 0:00:04]} dxc4 {[%emt 0:17:30]} 8. bxc4 {[%emt 0:00:18]} c5 {[%emt 0:00:03]} 9. Bb2 {[%emt 0:00:10]} cxd4 {[%emt 0:07:17]} 10. Nxd4 {[%emt 0:00:16]} Qb6 {[%emt 0:00:15]} 11. Qc1 {[%emt 0:00:44]} Bd7 {[%emt 0:04:56]} 12. Nd2 {[%emt 0:00:25]} Bc6 {[%emt 0:11:13]} 13. Nxc6 {[%emt 0:05:02]} Nxc6 {[%emt 0:00:36] White is slightly better.} 14. Rb1 {[%emt 0:01:10] [#] Hoping for Bxf6.} Qc7 {[%emt 0:01:15]} 15. Bc3 {[%emt 0:01:39] This pair of bishops is nice.} Rfd8 {[%emt 0:07:00]} 16. Qb2 {[%emt 0:02:16]} Rab8 {[%emt 0:00:53] The position is equal.} 17. Rfd1 {[%emt 0:09:40]} Ne8 {[%emt 0:04:20]} 18. Ne4 {[%emt 0:05:07]} Rxd1+ {[%emt 0:09:00]} 19. Rxd1 {[%emt 0:00:15]} Rd8 {[%emt 0:07:47]} 20. Rb1 {[%emt 0:04:07][%cal Oc3g7]} b6 {[%emt 0:00:55]} 21. Bxg7 {[%emt 0:05:55]} Nxg7 {[%emt 0:00:02]} 22. c5 {[%emt 0:00:18]} bxc5 {[%emt 0:04:01]} 23. Nxc5 {[%emt 0:00:29]} Rb8 {[%emt 0:01:45] Wards off Qb7} 24. Nb3 {[%emt 0:00:38]} Na5 {[%emt 0:01:46]} 25. Rc1 {[%emt 0:02:32]} Qd8 {[%emt 0:05:18]} 26. Qd4 {[%emt 0:07:32] [#] And now Qxd8+ would win.} Nxb3 {[%emt 0:00:07]} 27. Qxd8+ {[%emt 0:00:08]} Rxd8 {[%emt 0:00:02]} 28. axb3 $11 {[%emt 0:00:12][%mdl 4096] Endgame. KRB-KRN} Ne6 {[%emt 0:02:42]} 29. e3 {[%emt 0:01:52]} Kf8 {[%emt 0:06:10]} 30. b4 {[%emt 0:03:49]} Rb8 {[%emt 0:00:56]} 31. Rc4 {[%emt 0:00:41]} Ng7 {[%emt 0:02:35]} 32. Rc7 {[%emt 0:06:48]} Ne6 {[%emt 0:00:50]} 33. Rb7 {[%emt 0:00:20]} Rxb7 {[%emt 0:00:22]} 34. Bxb7 {[%emt 0:00:07]} Nd8 {[%emt 0:00:28]} 35. Ba8 {[%emt 0:02:32]} Ke8 {[%emt 0:00:25]} 36. Kf1 $1 {[%emt 0:00:06]} Kd7 {[%emt 0:01:19] Weighted Error Value: White=0.04 (flawless) /Black=0.04 (flawless) .  Inaccurate:     	---       	Black=1      OK:         	White=10    	Black=16     Strong:       	White=1     	---} 1/2-1/2